[Event "Titled Tuesday Blitz November 22 Late 2022"]
[White "Antonova, Nadezhda"]
[Black "Remolar Gallen, Jose"]
[WhiteFideId "14700182"]
[BlackFideId "2215187"]
[WhiteElo "1813"]
[BlackElo "2252"]
[Result "1-0"]
[Round "10"]
[TimeControl "180+1"]
[Date "2022.11.23"]
[WhiteClock "0:01:54"]
[BlackClock "0:01:41"]

1. Nf3 {[%clk 0:02:54]}  Nf6 {[%clk 0:02:58]} 2. b3 {[%clk 0:02:54]}  d5 {[%clk 0:02:57]} 3. Bb2 {[%clk 0:02:55]}  c5 {[%clk 0:02:57]} 4. e3 {[%clk 0:02:55]}  e6 {[%clk 0:02:57]} 5. Bb5+ {[%clk 0:02:55]}  Bd7 {[%clk 0:02:57]} 6. Qe2 {[%clk 0:02:55]}  Nc6 {[%clk 0:02:55]} 7. O-O {[%clk 0:02:53]}  Be7 {[%clk 0:02:53]} 8. d3 {[%clk 0:02:53]}  O-O {[%clk 0:02:52]} 9. Nbd2 {[%clk 0:02:52]}  a6 {[%clk 0:02:52]} 10. Bxc6 {[%clk 0:02:52]}  Bxc6 {[%clk 0:02:52]} 11. Ne5 {[%clk 0:02:53]}  Bd6 {[%clk 0:02:50]} 12. f4 {[%clk 0:02:52]}  Bc7 {[%clk 0:02:40]} 13. Nxc6 {[%clk 0:02:50]}  bxc6 {[%clk 0:02:39]} 14. e4 {[%clk 0:02:46]}  d4 {[%clk 0:02:21]} 15. Nc4 {[%clk 0:02:33]}  Qe7 {[%clk 0:02:14]} 16. a4 {[%clk 0:02:32]}  e5 {[%clk 0:02:12]} 17. f5 {[%clk 0:02:26]}  h6 {[%clk 0:01:52]} 18. g4 {[%clk 0:02:24]}  Nh7 {[%clk 0:01:52]} 19. Bc1 {[%clk 0:02:16]}  Qh4 {[%clk 0:01:52]} 20. Qg2 {[%clk 0:02:01]}  Nf6 {[%clk 0:01:51]} 21. h3 {[%clk 0:01:59]}  Rae8 {[%clk 0:01:46]} 22. Nd2 {[%clk 0:01:55]}  Ba5 {[%clk 0:01:41]} 23. Nf3 {[%clk 0:01:54]} 1-0


[Site "https://www.chess.com"]

[Event "Titled Tuesday Blitz November 22 Late 2022"]
[White "Arbunic Castro, Giovanna"]
[Black "Rodriguez Santiago, Jaime"]
[WhiteFideId "3400549"]
[BlackFideId "3100898"]
[WhiteElo "1992"]
[BlackElo "2025"]
[Result "1-0"]
[Round "10"]
[TimeControl "180+1"]
[Date "2022.11.23"]
[WhiteClock "0:00:18"]
[BlackClock "0:00:10"]

1. e4 {[%clk 0:02:59]}  c6 {[%clk 0:02:59]} 2. d4 {[%clk 0:02:58]}  d5 {[%clk 0:02:58]} 3. e5 {[%clk 0:02:58]}  Bf5 {[%clk 0:02:58]} 4. Nf3 {[%clk 0:02:58]}  e6 {[%clk 0:02:57]} 5. Be2 {[%clk 0:02:59]}  c5 {[%clk 0:02:57]} 6. dxc5 {[%clk 0:02:57]}  Bxc5 {[%clk 0:02:53]} 7. a3 {[%clk 0:02:57]}  Nc6 {[%clk 0:02:52]} 8. b4 {[%clk 0:02:56]}  Be7 {[%clk 0:02:50]} 9. Nbd2 {[%clk 0:02:55]}  Qc7 {[%clk 0:02:45]} 10. Bb2 {[%clk 0:02:52]}  h5 {[%clk 0:02:42]} 11. c4 {[%clk 0:02:50]}  dxc4 {[%clk 0:02:35]} 12. Nxc4 {[%clk 0:02:47]}  Rd8 {[%clk 0:02:33]} 13. Qb3 {[%clk 0:02:45]}  Bg4 {[%clk 0:02:24]} 14. O-O {[%clk 0:02:40]}  Nh6 {[%clk 0:02:20]} 15. Nd6+ {[%clk 0:02:37]}  Kf8 {[%clk 0:02:12]} 16. Qc3 {[%clk 0:02:23]}  Qb8 {[%clk 0:01:36]} 17. b5 {[%clk 0:02:16]}  Bxf3 {[%clk 0:01:08]} 18. Bxf3 {[%clk 0:02:10]}  Nxe5 {[%clk 0:00:54]} 19. Qxe5 {[%clk 0:02:05]}  Bf6 {[%clk 0:00:51]} 20. Qe2 {[%clk 0:01:31]}  Bxb2 {[%clk 0:00:33]} 21. Qxb2 {[%clk 0:01:26]}  Rxd6 {[%clk 0:00:33]} 22. Rfd1 {[%clk 0:01:24]}  b6 {[%clk 0:00:29]} 23. Rxd6 {[%clk 0:01:14]}  Qxd6 {[%clk 0:00:27]} 24. Rd1 {[%clk 0:01:14]}  Qc7 {[%clk 0:00:25]} 25. Qb4+ {[%clk 0:01:04]}  Kg8 {[%clk 0:00:21]} 26. Bc6 {[%clk 0:00:50]}  Ng4 {[%clk 0:00:20]} 27. g3 {[%clk 0:00:48]}  h4 {[%clk 0:00:20]} 28. Rd7 {[%clk 0:00:46]}  Qe5 {[%clk 0:00:19]} 29. Qxg4 {[%clk 0:00:37]}  Qe1+ {[%clk 0:00:19]} 30. Kg2 {[%clk 0:00:36]}  h3+ {[%clk 0:00:19]} 31. Kf3 {[%clk 0:00:30]}  Qh1+ {[%clk 0:00:18]} 32. Kf4 {[%clk 0:00:24]}  e5+ {[%clk 0:00:17]} 33. Kf5 {[%clk 0:00:20]}  g6+ {[%clk 0:00:16]} 34. Kf6 {[%clk 0:00:19]}  Qa1 {[%clk 0:00:10]} 35. Rd8+ {[%clk 0:00:18]}  Kh7 {[%clk 0:00:10]} 36. Qh4# {[%clk 0:00:18]} 1-0


[Site "https://www.chess.com"]

[Event "Titled Tuesday Blitz November 22 Late 2022"]
[White "Arnold, Ken"]
[Black "Curtis, John"]
[WhiteFideId "2056836"]
[BlackFideId "3200256"]
[WhiteElo "2363"]
[BlackElo "2203"]
[Result "1/2-1/2"]
[Round "10"]
[TimeControl "180+1"]
[Date "2022.11.23"]
[WhiteClock "0:00:26"]
[BlackClock "0:00:17"]

1. c4 {[%clk 0:03:00]}  Nf6 {[%clk 0:02:59]} 2. Nf3 {[%clk 0:03:00]}  g6 {[%clk 0:02:57]} 3. Nc3 {[%clk 0:03:00]}  Bg7 {[%clk 0:02:57]} 4. b3 {[%clk 0:03:00]}  O-O {[%clk 0:02:57]} 5. Bb2 {[%clk 0:03:00]}  d5 {[%clk 0:02:54]} 6. cxd5 {[%clk 0:03:00]}  Nxd5 {[%clk 0:02:54]} 7. e3 {[%clk 0:02:58]}  Nxc3 {[%clk 0:02:52]} 8. Bxc3 {[%clk 0:02:58]}  Bxc3 {[%clk 0:02:51]} 9. dxc3 {[%clk 0:02:58]}  Qxd1+ {[%clk 0:02:49]} 10. Rxd1 {[%clk 0:02:57]}  Bg4 {[%clk 0:02:48]} 11. h3 {[%clk 0:02:56]}  Bxf3 {[%clk 0:02:40]} 12. gxf3 {[%clk 0:02:55]}  Nc6 {[%clk 0:02:40]} 13. Bb5 {[%clk 0:02:48]}  Rfd8 {[%clk 0:02:26]} 14. Bxc6 {[%clk 0:02:47]}  bxc6 {[%clk 0:02:25]} 15. Ke2 {[%clk 0:02:47]}  Rd6 {[%clk 0:02:25]} 16. Rd4 {[%clk 0:02:45]}  e5 {[%clk 0:02:16]} 17. Rxd6 {[%clk 0:02:45]}  cxd6 {[%clk 0:02:16]} 18. Rd1 {[%clk 0:02:41]}  Rd8 {[%clk 0:02:11]} 19. c4 {[%clk 0:02:38]}  Kf8 {[%clk 0:02:09]} 20. e4 {[%clk 0:02:37]}  Ke7 {[%clk 0:02:09]} 21. h4 {[%clk 0:02:27]}  h6 {[%clk 0:01:55]} 22. Ke3 {[%clk 0:02:25]}  g5 {[%clk 0:01:46]} 23. hxg5 {[%clk 0:02:18]}  hxg5 {[%clk 0:01:45]} 24. Rh1 {[%clk 0:02:18]}  Rg8 {[%clk 0:01:44]} 25. Rh6 {[%clk 0:02:13]}  c5 {[%clk 0:01:42]} 26. Rh1 {[%clk 0:01:59]}  a5 {[%clk 0:01:42]} 27. Kd3 {[%clk 0:01:55]}  a4 {[%clk 0:01:33]} 28. Kc3 {[%clk 0:01:47]}  Ra8 {[%clk 0:01:28]} 29. b4 {[%clk 0:01:39]}  cxb4+ {[%clk 0:01:16]} 30. Kxb4 {[%clk 0:01:39]}  Rb8+ {[%clk 0:01:09]} 31. Ka3 {[%clk 0:01:32]}  Rc8 {[%clk 0:01:08]} 32. Rc1 {[%clk 0:01:31]}  Ra8 {[%clk 0:01:07]} 33. c5 {[%clk 0:01:29]}  dxc5 {[%clk 0:01:06]} 34. Rxc5 {[%clk 0:01:29]}  Kd6 {[%clk 0:00:56]} 35. Rd5+ {[%clk 0:01:27]}  Ke6 {[%clk 0:00:56]} 36. Kb4 {[%clk 0:01:27]}  Rb8+ {[%clk 0:00:53]} 37. Rb5 {[%clk 0:01:27]}  Rd8 {[%clk 0:00:53]} 38. Kc3 {[%clk 0:01:13]}  Rd1 {[%clk 0:00:44]} 39. Rb6+ {[%clk 0:01:06]}  Ke7 {[%clk 0:00:43]} 40. Rb2 {[%clk 0:00:59]}  a3 {[%clk 0:00:43]} 41. Rd2 {[%clk 0:00:54]}  Rb1 {[%clk 0:00:39]} 42. Kd3 {[%clk 0:00:42]}  f6 {[%clk 0:00:37]} 43. Rc2 {[%clk 0:00:42]}  Kf7 {[%clk 0:00:32]} 44. Rc3 {[%clk 0:00:41]}  Rb2 {[%clk 0:00:31]} 45. Rxa3 {[%clk 0:00:39]}  Rxf2 {[%clk 0:00:31]} 46. Ke3 {[%clk 0:00:40]}  Rf1 {[%clk 0:00:30]} 47. Ra7+ {[%clk 0:00:38]}  Kg6 {[%clk 0:00:31]} 48. a4 {[%clk 0:00:38]}  Ra1 {[%clk 0:00:27]} 49. Ra8 {[%clk 0:00:38]}  Ra3+ {[%clk 0:00:20]} 50. Kf2 {[%clk 0:00:38]}  g4 {[%clk 0:00:17]} 51. Rg8+ {[%clk 0:00:26]}  Kf7 {[%clk 0:00:17]} 1/2-1/2


[Site "https://www.chess.com"]

[Event "Titled Tuesday Blitz November 22 Late 2022"]
[White "Besedes, Danilo"]
[Black "Yeritsyan, Hayk"]
[WhiteFideId "946796"]
[BlackFideId "13307320"]
[WhiteElo "2352"]
[BlackElo "2400"]
[Result "1-0"]
[Round "10"]
[TimeControl "180+1"]
[Date "2022.11.23"]
[WhiteClock "0:00:11"]
[BlackClock "0:00:07"]

1. b3 {[%clk 0:03:00]}  d5 {[%clk 0:02:58]} 2. Bb2 {[%clk 0:03:00]}  Nf6 {[%clk 0:02:58]} 3. e3 {[%clk 0:03:00]}  Bf5 {[%clk 0:02:58]} 4. Nf3 {[%clk 0:02:57]}  e6 {[%clk 0:02:58]} 5. c4 {[%clk 0:02:56]}  c6 {[%clk 0:02:58]} 6. Nc3 {[%clk 0:02:55]}  Bd6 {[%clk 0:02:58]} 7. d4 {[%clk 0:02:55]}  Nbd7 {[%clk 0:02:58]} 8. Be2 {[%clk 0:02:53]}  Qe7 {[%clk 0:02:57]} 9. Nh4 {[%clk 0:02:52]}  Be4 {[%clk 0:02:56]} 10. O-O {[%clk 0:02:42]}  O-O {[%clk 0:02:54]} 11. Nxe4 {[%clk 0:02:39]}  Nxe4 {[%clk 0:02:54]} 12. Nf3 {[%clk 0:02:37]}  f5 {[%clk 0:02:53]} 13. a3 {[%clk 0:02:31]}  Qf6 {[%clk 0:02:53]} 14. b4 {[%clk 0:02:29]}  g5 {[%clk 0:02:53]} 15. b5 {[%clk 0:02:28]}  g4 {[%clk 0:02:52]} 16. Nd2 {[%clk 0:02:28]}  Qh4 {[%clk 0:02:50]} 17. f4 {[%clk 0:02:23]}  gxf3 {[%clk 0:02:40]} 18. Nxf3 {[%clk 0:02:20]}  Qh6 {[%clk 0:02:41]} 19. Qb3 {[%clk 0:02:06]}  Nd2 {[%clk 0:02:17]} 20. Qd3 {[%clk 0:01:40]}  Nxf1 {[%clk 0:02:02]} 21. Rxf1 {[%clk 0:01:41]}  Nf6 {[%clk 0:02:01]} 22. Bc1 {[%clk 0:01:37]}  Ne4 {[%clk 0:01:58]} 23. c5 {[%clk 0:01:30]}  Bc7 {[%clk 0:01:56]} 24. bxc6 {[%clk 0:01:30]}  bxc6 {[%clk 0:01:56]} 25. Qa6 {[%clk 0:01:30]}  Rac8 {[%clk 0:01:43]} 26. Bd3 {[%clk 0:01:01]}  Qg7 {[%clk 0:01:33]} 27. Kh1 {[%clk 0:00:50]}  Kh8 {[%clk 0:01:24]} 28. Bc2 {[%clk 0:00:45]}  Qh6 {[%clk 0:01:20]} 29. Kg1 {[%clk 0:00:44]}  Rg8 {[%clk 0:01:17]} 30. Bxe4 {[%clk 0:00:43]}  fxe4 {[%clk 0:01:15]} 31. Ne5 {[%clk 0:00:44]}  Bxe5 {[%clk 0:01:12]} 32. dxe5 {[%clk 0:00:44]}  Qg7 {[%clk 0:01:07]} 33. g3 {[%clk 0:00:41]}  Rcf8 {[%clk 0:01:02]} 34. Rf4 {[%clk 0:00:22]}  Qxe5 {[%clk 0:00:55]} 35. Qe2 {[%clk 0:00:21]}  Rxf4 {[%clk 0:00:40]} 36. Bb2 {[%clk 0:00:18]}  Rf5 {[%clk 0:00:31]} 37. Bxe5+ {[%clk 0:00:14]}  Rxe5 {[%clk 0:00:32]} 38. Qb2 {[%clk 0:00:14]}  Rg5 {[%clk 0:00:31]} 39. h4 {[%clk 0:00:11]}  Rxg3+ {[%clk 0:00:15]} 40. Kh2 {[%clk 0:00:10]}  Rxe3 {[%clk 0:00:06]} 41. Qxe5+ {[%clk 0:00:10]}  Kg8 {[%clk 0:00:07]} 42. Qg5+ {[%clk 0:00:10]}  Kh8 {[%clk 0:00:06]} 43. Qxe3 {[%clk 0:00:11]}  e5 {[%clk 0:00:07]} 44. Qg5 {[%clk 0:00:11]} 1-0


[Site "https://www.chess.com"]

[Event "Titled Tuesday Blitz November 22 Late 2022"]
[White "Burke, Paul"]
[Black "Gerbelli Neto, Eduardo"]
[WhiteFideId "2605767"]
[BlackFideId "2103281"]
[WhiteElo "1938"]
[BlackElo "2178"]
[Result "0-1"]
[Round "10"]
[TimeControl "180+1"]
[Date "2022.11.23"]
[WhiteClock "0:00:05"]
[BlackClock "0:01:05"]

1. e4 {[%clk 0:03:00]}  e5 {[%clk 0:02:59]} 2. Nf3 {[%clk 0:03:00]}  Nc6 {[%clk 0:02:59]} 3. Bc4 {[%clk 0:02:59]}  Nf6 {[%clk 0:02:59]} 4. O-O {[%clk 0:02:53]}  Nxe4 {[%clk 0:02:58]} 5. d4 {[%clk 0:02:48]}  d5 {[%clk 0:02:58]} 6. Bb5 {[%clk 0:02:41]}  exd4 {[%clk 0:02:57]} 7. Nxd4 {[%clk 0:02:38]}  Bd7 {[%clk 0:02:54]} 8. Nxc6 {[%clk 0:02:31]}  bxc6 {[%clk 0:02:52]} 9. Bd3 {[%clk 0:02:30]}  Nf6 {[%clk 0:02:48]} 10. Re1+ {[%clk 0:02:25]}  Be7 {[%clk 0:02:48]} 11. Qe2 {[%clk 0:02:24]}  Be6 {[%clk 0:02:47]} 12. c4 {[%clk 0:02:15]}  O-O {[%clk 0:02:46]} 13. cxd5 {[%clk 0:02:14]}  cxd5 {[%clk 0:02:46]} 14. Nc3 {[%clk 0:02:08]}  h6 {[%clk 0:02:27]} 15. Bf4 {[%clk 0:01:59]}  Bd6 {[%clk 0:02:21]} 16. Be5 {[%clk 0:01:46]}  Bxe5 {[%clk 0:02:20]} 17. Qxe5 {[%clk 0:01:46]}  Qd7 {[%clk 0:02:14]} 18. Rad1 {[%clk 0:01:38]}  Rfe8 {[%clk 0:02:11]} 19. Qg3 {[%clk 0:01:29]}  c6 {[%clk 0:01:57]} 20. h3 {[%clk 0:01:22]}  Bf5 {[%clk 0:01:57]} 21. Rxe8+ {[%clk 0:01:12]}  Rxe8 {[%clk 0:01:58]} 22. Bxf5 {[%clk 0:01:05]}  Qxf5 {[%clk 0:01:58]} 23. Qd3 {[%clk 0:00:46]}  Qxd3 {[%clk 0:01:50]} 24. Rxd3 {[%clk 0:00:45]}  Re1+ {[%clk 0:01:50]} 25. Kh2 {[%clk 0:00:44]}  Kf8 {[%clk 0:01:46]} 26. Rd2 {[%clk 0:00:28]}  Ke7 {[%clk 0:01:43]} 27. f3 {[%clk 0:00:24]}  g5 {[%clk 0:01:33]} 28. Re2+ {[%clk 0:00:12]}  Rxe2 {[%clk 0:01:32]} 29. Nxe2 {[%clk 0:00:12]}  c5 {[%clk 0:01:33]} 30. Kg3 {[%clk 0:00:10]}  d4 {[%clk 0:01:29]} 31. Kf2 {[%clk 0:00:09]}  Ke6 {[%clk 0:01:22]} 32. b3 {[%clk 0:00:10]}  Nd5 {[%clk 0:01:20]} 33. Nc1 {[%clk 0:00:08]}  Nc3 {[%clk 0:01:18]} 34. Ke1 {[%clk 0:00:06]}  Kd5 {[%clk 0:01:11]} 35. Kd2 {[%clk 0:00:06]}  f5 {[%clk 0:01:07]} 36. a3 {[%clk 0:00:05]}  Nb1+ {[%clk 0:01:05]} 0-1


[Site "https://www.chess.com"]

[Event "Titled Tuesday Blitz November 22 Late 2022"]
[White "Chigaev, Maksim"]
[Black "Bortnyk, Olexandr"]
[WhiteFideId "4108116"]
[BlackFideId "14120828"]
[WhiteElo "2541"]
[BlackElo "2723"]
[Result "0-1"]
[Round "10"]
[TimeControl "180+1"]
[Date "2022.11.22"]
[WhiteClock "0:00:02"]
[BlackClock "0:00:09"]

1. e4 {[%clk 0:03:00]}  Nf6 {[%clk 0:02:59]} 2. e5 {[%clk 0:03:01]}  Nd5 {[%clk 0:02:59]} 3. d4 {[%clk 0:03:01]}  d6 {[%clk 0:02:59]} 4. Nf3 {[%clk 0:03:02]}  dxe5 {[%clk 0:03:00]} 5. Nxe5 {[%clk 0:03:03]}  c6 {[%clk 0:03:01]} 6. Be2 {[%clk 0:03:03]}  Bf5 {[%clk 0:03:01]} 7. O-O {[%clk 0:03:03]}  Nd7 {[%clk 0:03:01]} 8. Nf3 {[%clk 0:03:01]}  e6 {[%clk 0:03:02]} 9. c4 {[%clk 0:03:00]}  N5f6 {[%clk 0:03:02]} 10. Nc3 {[%clk 0:03:00]}  Bd6 {[%clk 0:03:02]} 11. Nh4 {[%clk 0:03:01]}  Bg6 {[%clk 0:03:02]} 12. g3 {[%clk 0:03:00]}  O-O {[%clk 0:03:02]} 13. Be3 {[%clk 0:03:01]}  Qc7 {[%clk 0:03:02]} 14. Rc1 {[%clk 0:02:58]}  a5 {[%clk 0:03:00]} 15. a3 {[%clk 0:02:56]}  Rfe8 {[%clk 0:03:00]} 16. Bf3 {[%clk 0:02:39]}  e5 {[%clk 0:02:49]} 17. d5 {[%clk 0:02:10]}  e4 {[%clk 0:02:47]} 18. Bg2 {[%clk 0:02:10]}  Bc5 {[%clk 0:02:44]} 19. Nxg6 {[%clk 0:02:05]}  hxg6 {[%clk 0:02:45]} 20. Bf4 {[%clk 0:01:56]}  Qb6 {[%clk 0:02:26]} 21. Na4 {[%clk 0:01:55]}  Qa6 {[%clk 0:02:26]} 22. Re1 {[%clk 0:01:18]}  Rad8 {[%clk 0:02:13]} 23. Bc7 {[%clk 0:01:07]}  Rc8 {[%clk 0:02:06]} 24. d6 {[%clk 0:00:36]}  e3 {[%clk 0:01:30]} 25. Nxc5 {[%clk 0:00:36]}  exf2+ {[%clk 0:01:31]} 26. Kxf2 {[%clk 0:00:37]}  Nxc5 {[%clk 0:01:31]} 27. Rxe8+ {[%clk 0:00:16]}  Rxe8 {[%clk 0:01:32]} 28. Kg1 {[%clk 0:00:15]}  a4 {[%clk 0:01:29]} 29. Qf1 {[%clk 0:00:08]}  Qa7 {[%clk 0:01:17]} 30. Qf2 {[%clk 0:00:08]}  Nfd7 {[%clk 0:00:19]} 31. Rd1 {[%clk 0:00:08]}  Re5 {[%clk 0:00:17]} 32. h3 {[%clk 0:00:08]}  Qa6 {[%clk 0:00:13]} 33. Qd4 {[%clk 0:00:08]}  Nb3 {[%clk 0:00:12]} 34. Qc3 {[%clk 0:00:09]}  Qa7+ {[%clk 0:00:13]} 35. Kh2 {[%clk 0:00:09]}  Re2 {[%clk 0:00:11]} 36. c5 {[%clk 0:00:05]}  Qxc5 {[%clk 0:00:09]} 37. Qxc5 {[%clk 0:00:04]}  Nbxc5 {[%clk 0:00:10]} 38. Kg1 {[%clk 0:00:04]}  Rxb2 {[%clk 0:00:10]} 39. Re1 {[%clk 0:00:04]}  Ne6 {[%clk 0:00:10]} 40. h4 {[%clk 0:00:04]}  Rb3 {[%clk 0:00:08]} 41. Bh3 {[%clk 0:00:04]}  Rxg3+ {[%clk 0:00:08]} 42. Kh2 {[%clk 0:00:04]}  Rxa3 {[%clk 0:00:08]} 43. Bxe6 {[%clk 0:00:04]}  fxe6 {[%clk 0:00:09]} 44. Rxe6 {[%clk 0:00:04]}  Rd3 {[%clk 0:00:10]} 45. Re8+ {[%clk 0:00:03]}  Kh7 {[%clk 0:00:10]} 46. Ra8 {[%clk 0:00:03]}  b5 {[%clk 0:00:10]} 47. Ra6 {[%clk 0:00:03]}  a3 {[%clk 0:00:10]} 48. Rxc6 {[%clk 0:00:03]}  b4 {[%clk 0:00:09]} 49. Ra6 {[%clk 0:00:03]}  Rd2+ {[%clk 0:00:09]} 50. Kg3 {[%clk 0:00:04]}  a2 {[%clk 0:00:09]} 51. Kf4 {[%clk 0:00:02]}  b3 {[%clk 0:00:09]} 0-1


[Site "https://www.chess.com"]

[Event "Titled Tuesday Blitz November 22 Late 2022"]
[White "Clawitter, Craig"]
[Black "Musovic, Armin"]
[WhiteFideId "2023105"]
[BlackFideId "939935"]
[WhiteElo "2279"]
[BlackElo "2288"]
[Result "0-1"]
[Round "10"]
[TimeControl "180+1"]
[Date "2022.11.23"]
[WhiteClock "0:00:04"]
[BlackClock "0:01:20"]

1. e4 {[%clk 0:03:00]}  c6 {[%clk 0:02:58]} 2. Nf3 {[%clk 0:03:00]}  d5 {[%clk 0:02:59]} 3. e5 {[%clk 0:03:01]}  c5 {[%clk 0:02:59]} 4. d4 {[%clk 0:03:01]}  Nc6 {[%clk 0:03:00]} 5. dxc5 {[%clk 0:03:01]}  Bg4 {[%clk 0:03:01]} 6. c3 {[%clk 0:03:00]}  e6 {[%clk 0:03:00]} 7. Bb5 {[%clk 0:02:57]}  Bxf3 {[%clk 0:02:59]} 8. Qxf3 {[%clk 0:02:57]}  Bxc5 {[%clk 0:03:00]} 9. b4 {[%clk 0:02:54]}  Bb6 {[%clk 0:02:59]} 10. Qg3 {[%clk 0:02:51]}  Kf8 {[%clk 0:02:59]} 11. O-O {[%clk 0:02:48]}  Nge7 {[%clk 0:02:58]} 12. Bg5 {[%clk 0:02:45]}  Qc7 {[%clk 0:02:57]} 13. Bd3 {[%clk 0:02:34]}  h6 {[%clk 0:02:40]} 14. Bxe7+ {[%clk 0:02:20]}  Nxe7 {[%clk 0:02:41]} 15. a4 {[%clk 0:02:17]}  a5 {[%clk 0:02:40]} 16. Na3 {[%clk 0:02:14]}  Nc6 {[%clk 0:02:03]} 17. Rfe1 {[%clk 0:01:50]}  axb4 {[%clk 0:02:03]} 18. Nb5 {[%clk 0:01:50]}  Qe7 {[%clk 0:02:03]} 19. cxb4 {[%clk 0:01:44]}  Nxb4 {[%clk 0:01:59]} 20. Nd6 {[%clk 0:01:41]}  Bc5 {[%clk 0:01:46]} 21. Rac1 {[%clk 0:01:11]}  b6 {[%clk 0:01:44]} 22. Bb5 {[%clk 0:01:06]}  g5 {[%clk 0:01:33]} 23. Kh1 {[%clk 0:00:20]}  Kg7 {[%clk 0:01:25]} 24. f4 {[%clk 0:00:20]}  Bxd6 {[%clk 0:01:26]} 25. exd6 {[%clk 0:00:08]}  Qxd6 {[%clk 0:01:25]} 26. fxg5 {[%clk 0:00:08]}  Qxg3 {[%clk 0:01:25]} 27. hxg3 {[%clk 0:00:09]}  hxg5+ {[%clk 0:01:25]} 28. Kg1 {[%clk 0:00:10]}  Rhc8 {[%clk 0:01:23]} 29. Kf2 {[%clk 0:00:10]}  Rc5 {[%clk 0:01:22]} 30. Rxc5 {[%clk 0:00:05]}  bxc5 {[%clk 0:01:22]} 31. Rc1 {[%clk 0:00:05]}  Ra5 {[%clk 0:01:19]} 32. Rxc5 {[%clk 0:00:04]}  Nd3+ {[%clk 0:01:20]} 33. Bxd3 {[%clk 0:00:04]}  Rxc5 {[%clk 0:01:21]} 34. Bb5 {[%clk 0:00:03]}  Rc2+ {[%clk 0:01:20]} 35. Ke3 {[%clk 0:00:03]}  Rxg2 {[%clk 0:01:20]} 36. Kf3 {[%clk 0:00:04]}  Ra2 {[%clk 0:01:20]} 0-1


[Site "https://www.chess.com"]

[Event "Titled Tuesday Blitz November 22 Late 2022"]
[White "Cortes Orihuela, Javier"]
[Black "Milchev, Nikolay"]
[WhiteFideId "3414329"]
[BlackFideId "2906090"]
[WhiteElo "2080"]
[BlackElo "2449"]
[Result "0-1"]
[Round "10"]
[TimeControl "180+1"]
[Date "2022.11.23"]
[WhiteClock "0:00:01"]
[BlackClock "0:00:47"]

1. d4 {[%clk 0:03:00]}  Nf6 {[%clk 0:03:00]} 2. c4 {[%clk 0:03:01]}  g6 {[%clk 0:02:52]} 3. Nc3 {[%clk 0:03:00]}  Bg7 {[%clk 0:02:53]} 4. e4 {[%clk 0:03:00]}  d6 {[%clk 0:02:53]} 5. Nf3 {[%clk 0:03:01]}  O-O {[%clk 0:02:53]} 6. h3 {[%clk 0:03:02]}  c5 {[%clk 0:02:54]} 7. d5 {[%clk 0:03:02]}  b5 {[%clk 0:02:54]} 8. cxb5 {[%clk 0:03:03]}  a6 {[%clk 0:02:54]} 9. a4 {[%clk 0:03:03]}  Qa5 {[%clk 0:02:50]} 10. Nd2 {[%clk 0:02:38]}  Qb4 {[%clk 0:02:43]} 11. bxa6 {[%clk 0:02:30]}  Bxa6 {[%clk 0:02:42]} 12. Bxa6 {[%clk 0:02:29]}  Nxa6 {[%clk 0:02:43]} 13. O-O {[%clk 0:02:28]}  Rfb8 {[%clk 0:02:43]} 14. Qe2 {[%clk 0:02:24]}  Nc7 {[%clk 0:02:42]} 15. Ra3 {[%clk 0:02:10]}  Nd7 {[%clk 0:02:36]} 16. Rb3 {[%clk 0:02:05]}  Qd4 {[%clk 0:02:34]} 17. Nf3 {[%clk 0:01:49]}  Rxb3 {[%clk 0:02:26]} 18. Nxd4 {[%clk 0:01:49]}  cxd4 {[%clk 0:02:24]} 19. Qc4 {[%clk 0:01:37]}  Nc5 {[%clk 0:02:18]} 20. Nb1 {[%clk 0:00:40]}  Rxa4 {[%clk 0:02:17]} 21. Qc2 {[%clk 0:00:31]}  d3 {[%clk 0:02:16]} 22. Qd1 {[%clk 0:00:28]}  Bxb2 {[%clk 0:02:07]} 23. Nd2 {[%clk 0:00:24]}  Rbb4 {[%clk 0:01:55]} 24. Bxb2 {[%clk 0:00:13]}  Rxb2 {[%clk 0:01:56]} 25. Nf3 {[%clk 0:00:09]}  Rxe4 {[%clk 0:01:49]} 26. Ng5 {[%clk 0:00:09]}  Re5 {[%clk 0:01:47]} 27. h4 {[%clk 0:00:09]}  Nxd5 {[%clk 0:01:46]} 28. Qa1 {[%clk 0:00:07]}  Rb8 {[%clk 0:01:33]} 29. f4 {[%clk 0:00:07]}  Re2 {[%clk 0:01:32]} 30. f5 {[%clk 0:00:06]}  Rbb2 {[%clk 0:01:24]} 31. Qa8+ {[%clk 0:00:06]}  Kg7 {[%clk 0:01:24]} 32. Qxd5 {[%clk 0:00:05]}  Rxg2+ {[%clk 0:01:12]} 33. Qxg2 {[%clk 0:00:04]}  Rxg2+ {[%clk 0:01:13]} 34. Kxg2 {[%clk 0:00:05]}  gxf5 {[%clk 0:01:12]} 35. Rd1 {[%clk 0:00:03]}  e5 {[%clk 0:01:10]} 36. Kf3 {[%clk 0:00:03]}  h6 {[%clk 0:01:10]} 37. Nh3 {[%clk 0:00:03]}  Kf6 {[%clk 0:01:03]} 38. Nf2 {[%clk 0:00:03]}  Ke6 {[%clk 0:00:59]} 39. Ke3 {[%clk 0:00:02]}  f4+ {[%clk 0:00:59]} 40. Kf3 {[%clk 0:00:02]}  f5 {[%clk 0:00:58]} 41. Kg2 {[%clk 0:00:01]}  e4 {[%clk 0:00:58]} 42. Nh3 {[%clk 0:00:01]}  Ke5 {[%clk 0:00:58]} 43. Kf2 {[%clk 0:00:01]}  d5 {[%clk 0:00:55]} 44. Ng1 {[%clk 0:00:01]}  Nb3 {[%clk 0:00:53]} 45. Rb1 {[%clk 0:00:01]}  e3+ {[%clk 0:00:53]} 46. Ke1 {[%clk 0:00:01]}  d2+ {[%clk 0:00:51]} 47. Ke2 {[%clk 0:00:01]}  Nd4+ {[%clk 0:00:51]} 48. Kd3 {[%clk 0:00:01]}  Ne6 {[%clk 0:00:47]} 49. Nf3+ {[%clk 0:00:01]}  Kf6 {[%clk 0:00:47]} 0-1


[Site "https://www.chess.com"]

[Event "Titled Tuesday Blitz November 22 Late 2022"]
[White "Desideri, Ricardo Maruchi"]
[Black "Sanchez, Robert"]
[WhiteFideId "2110440"]
[BlackFideId "2034360"]
[WhiteElo "1945"]
[BlackElo "2309"]
[Result "0-1"]
[Round "10"]
[TimeControl "180+1"]
[Date "2022.11.23"]
[WhiteClock "0:00:49"]
[BlackClock "0:02:05"]

1. e4 {[%clk 0:02:59]}  d5 {[%clk 0:02:59]} 2. exd5 {[%clk 0:02:59]}  Qxd5 {[%clk 0:02:59]} 3. Nc3 {[%clk 0:02:59]}  Qe6+ {[%clk 0:02:59]} 4. Be2 {[%clk 0:02:57]}  Qg6 {[%clk 0:02:59]} 5. Bf3 {[%clk 0:02:55]}  Nc6 {[%clk 0:02:59]} 6. d4 {[%clk 0:02:54]}  Bf5 {[%clk 0:02:59]} 7. Nd5 {[%clk 0:02:41]}  O-O-O {[%clk 0:02:58]} 8. Ne3 {[%clk 0:02:41]}  Nxd4 {[%clk 0:02:49]} 9. Nxf5 {[%clk 0:02:34]}  Nxf5 {[%clk 0:02:42]} 10. Bxb7+ {[%clk 0:02:25]}  Kxb7 {[%clk 0:02:42]} 11. Qxd8 {[%clk 0:02:24]}  Qxg2 {[%clk 0:02:42]} 12. Bf4 {[%clk 0:02:12]}  e5 {[%clk 0:02:34]} 13. O-O-O {[%clk 0:01:53]}  Qxh1 {[%clk 0:02:30]} 14. Bxe5 {[%clk 0:01:43]}  Bd6 {[%clk 0:02:22]} 15. Bxd6 {[%clk 0:01:32]}  Nxd6 {[%clk 0:02:21]} 16. f3 {[%clk 0:01:31]}  Qxh2 {[%clk 0:02:14]} 17. Qf8 {[%clk 0:00:55]}  g6 {[%clk 0:02:06]} 18. Qg7 {[%clk 0:00:49]}  Qh6+ {[%clk 0:02:05]} 0-1


[Site "https://www.chess.com"]